Workbook

Sheet Tabelle1
B2: Gewinnverteilung bei Personengesellschaften | J2: =LOOKUP(J4,H4:H5,I4:I5) -> KG
B4: zu verteilender Gewinn in € | D4: 800000 | E4: Markieren Sie die | H4: 1 | I4: OHG | J4: 2
B5: Kapitalverzinsung in % | D5: 4 | E5: Gesellschaftsform | H5: 2 | I5: KG
D7: Kapitalverzinsung | F7: vertragliche | G7: Verhältnisverteilung (KG) | I7: Restverteilung
B8: Gesellschafter | C8: Kapitalanteile | D8: % | E8: € | F8: Vor-/Nachleistungen | G8: Verhältnis | H8: € | I8: (OHG) | J8: Gesamtanteile
B9: Amberg, Antonia | C9: 200000 | D9: =IF(C9>0,$D$5,"") -> 4 | E9: =IF(C9>0,(C9*D9)/100,"") -> 8000 | G9: =IF(C9>0,IF($J$2="KG",K9,""),"") -> 2 | H9: =IF(C9>0,IF($J$2="KG",($J$20/$G$17)*K9,""),"") -> 382000 | I9: =IF(C9>0,IF($J$2="OHG",$J$20/COUNT($C$9:$C$16),""),"") ->  | J9: =IF(C9>0,IF($J$2="KG",E9+F9+H9,E9+F9+I9),"") -> 390000 | K9: 2
B10: Bach, Bernhard | C10: 350000 | D10: =IF(C10>0,$D$5,"") -> 4 | E10: =IF(C10>0,(C10*D10)/100,"") -> 14000 | F10: 3000 | G10: =IF(C10>0,IF($J$2="KG",K10,""),"") -> 1 | H10: =IF(C10>0,IF($J$2="KG",($J$20/$G$17)*K10,""),"") -> 191000 | I10: =IF(C10>0,IF($J$2="OHG",$J$20/COUNT($C$9:$C$16),""),"") ->  | J10: =IF(C10>0,IF($J$2="KG",E10+F10+H10,E10+F10+I10),"") -> 208000 | K10: 1
B11: Casper, Claudia | C11: 400000 | D11: 4 | E11: 16000 | F11: -5000 | G11: 1 | H11: 191000 | J11: 202000 | K11: 1
B17: Eigenkapital | C17: =SUM(C9:C16) -> 950000 | E17: =SUM(E9:E16) -> 38000 | F17: =(SUM(F9:F16))*-1 -> 2000 | G17: =IF(J2="KG",SUM(K9:K16),"") -> 4 | H17: =IF(J2="KG",SUM(H9:H16),"") -> 764000 | I17: =IF(J2="OHG",SUM(I9:I16),"") ->  | J17: =D4 -> 800000
J18: =E17 -> 38000
B19: Markieren Sie die Gesellschaftsform, und nehmen Sie nach Klick auf den | G19: Kontrollmeldung | J19: =F17 -> 2000
B20: Eingabebutton die erforderlichen Eingaben vor ! | G20: =IF(SUM(J9:J16)<>J17,"rechnerisch falsch","rechnerisch richtig") -> rechnerisch richtig | J20: =J17-J18+J19 -> 764000
B22: gesetzliche Gewinnverteilung | G22: vertragliche Gewinnverteilung
B23: bei der OHG: | C23: 4% der Kapitalanteile; Restverteilung nach Köpfen | G23: Vertragliche Abweichungen von den gesetzlichen
B24: bei der KG: | C24: 4% der Kapitalanteils; Rest im angemessenen Verhältnis | G24: Regelungen sind möglich.
B25: Definitionen: | C25: Vorleistungen wurden bereits ausgezahlt der zu verteilende Restgewinn ist entsprechend zu erhöhen.
C26: Gewinn ist der aktuell zur Auszahlung bereitstehende Gewinn. (Er ist ggf. um Vorleistungen gemindert.)
C27: Nachleistungen werden zusätzlich an den Empfänger ausgezahlt und mindern den insgesamt zu verteilenden Gewinn

Sheet Tabelle2

Sheet Tabelle3
